bitfinex/quotes_BTCUSD_20251102
["timestamp","ask_amount","ask_price","bid_price","bid_amount"]
[1762106529738,0.18525794,110340.0,110330.0,0.23368435]
[1762106530677,0.59179911,110340.0,110330.0,0.20928435]
[1762106531292,0.22144022,110340.0,110330.0,0.18127435]
[1762106531511,0.59179911,110340.0,110330.0,0.18127435]
[1762106531733,0.22144022,110340.0,110330.0,0.20881435]
[1762106531933,0.22144022,110340.0,110330.0,0.23605311]
[1762106532138,0.04018229,110340.0,110330.0,0.23605311]
[1762106532384,0.22144022,110340.0,110330.0,0.23605311]
[1762106532812,0.04018229,110340.0,110330.0,0.23605311]
[1762106533025,0.22144022,110340.0,110330.0,0.23605311]
[1762106534256,0.04018229,110340.0,110330.0,0.23605311]
[1762106535014,0.41054118,110340.0,110330.0,0.23605311]
[1762106535250,0.04018229,110340.0,110330.0,0.23605311]
[1762106535455,0.22144022,110340.0,110330.0,0.23605311]
[1762106537576,0.59179911,110340.0,110330.0,0.23605311]
[1762106538436,0.22144022,110340.0,110330.0,0.23605311]
[1762106539117,0.04018229,110340.0,110330.0,0.23605311]
[1762106539544,0.22144022,110340.0,110330.0,0.23605311]
[1762106539760,0.20708522,110340.0,110330.0,0.2812795]
[1762106544503,0.20708522,110340.0,110330.0,0.23605311]
[1762106553655,0.20708522,110340.0,110330.0,0.25870311]
[1762106554751,0.02582729,110340.0,110330.0,0.25870311]
[1762106555184,0.20708522,110340.0,110330.0,0.25870311]
[1762106561708,0.02582729,110340.0,110330.0,0.25870311]
[1762106564917,0.20122351,110350.0,110330.0,0.71152286]
[1762106565139,0.23740565,110350.0,110340.0,0.23275793]
[1762106565362,0.05616415,110350.0,110340.0,0.23275793]
[1762106565590,0.03658228,110350.0,110340.0,0.23275793]
[1762106565806,0.03680261,110350.0,110340.0,0.23275793]
[1762106566439,0.03880261,110350.0,110340.0,0.23275793]
[1762106566846,0.04580261,110350.0,110340.0,0.23275793]
[1762106567302,0.22004411,110350.0,110340.0,0.20942793]
[1762106567508,0.23962598,110350.0,110340.0,0.20942793]
[1762106567720,0.24662598,110350.0,110340.0,0.20942793]
[1762106572662,0.06538448,110350.0,110340.0,0.20942793]
[1762106572869,0.04580261,110350.0,110340.0,0.27049201]
[1762106573093,0.04580261,110350.0,110340.0,0.29772788]
[1762106575049,0.22704411,110350.0,110340.0,0.29772788]
[1762106575286,0.06538448,110350.0,110340.0,0.2599938]
[1762106575497,0.04580261,110350.0,110340.0,0.2599938]
[1762106579395,0.00962033,110350.0,110340.0,0.63059413]
[1762106581293,0.00962033,110350.0,110340.0,0.2599938]
[1762106581494,0.00962033,110350.0,110340.0,0.63059413]
[1762106582117,0.00962033,110350.0,110340.0,0.2599938]
[1762106582575,0.00962033,110350.0,110340.0,0.2366638]
[1762106582774,0.19086183,110350.0,110340.0,0.2366638]
[1762106582990,0.00962033,110350.0,110340.0,0.2366638]
[1762106583207,0.00962033,110350.0,110340.0,0.02723587]
[1762106583208,0.68835973,110350.0,110340.0,0.02723587]
[1762106583906,0.3177594,110350.0,110340.0,0.02723587]
[1762106585025,0.33732239,110350.0,110340.0,0.02723587]
[1762106586766,0.70792272,110350.0,110340.0,0.02723587]
[1762106591567,0.18125793,110340.0,110330.0,0.19347435]
[1762106591795,0.24009745,110340.0,110330.0,0.05582688]
[1762106591998,0.21744021,110340.0,110330.0,0.05582688]
[1762106592211,0.21744021,110340.0,110330.0,0.02859]
[1762106593286,0.21744021,110340.0,110330.0,0.20986435]
[1762106593736,0.22144021,110340.0,110330.0,0.20986435]
[1762106594148,0.22144021,110340.0,110330.0,0.02859]
[1762106595399,0.22144021,110340.0,110330.0,0.20986435]
[1762106596260,0.22144021,110340.0,110330.0,0.23252435]
[1762106600299,0.04018228,110340.0,110330.0,0.23252435]
[1762106605323,0.04018228,110340.0,110330.0,0.31484888]
[1762106607516,0.04018228,110340.0,110330.0,0.23252435]
[1762106608214,0.04018228,110340.0,110330.0,0.60312246]
[1762106612782,0.04018228,110340.0,110330.0,0.63036053]
[1762106613146,0.04018228,110340.0,110330.0,0.25976242]
[1762106613358,0.04018228,110340.0,110330.0,0.63036053]
[1762106613565,0.04018228,110340.0,110330.0,0.69294147]
[1762106615230,0.04018228,110340.0,110330.0,0.72017954]
[1762106620380,0.04018228,110340.0,110330.0,0.34958143]
[1762106620624,0.04018228,110340.0,110330.0,0.72017954]
[1762106629321,0.004,110340.0,110330.0,0.72017954]
[1762106630663,0.004,110340.0,110330.0,0.34958143]
[1762106630885,0.004,110340.0,110330.0,0.72017954]
[1762106635574,0.004,110340.0,110330.0,0.72003954]
[1762106641493,0.004,110340.0,110330.0,0.63022053]
[1762106647178,0.004,110340.0,110330.0,0.25962242]
[1762106648686,0.20791517,110340.0,110330.0,0.25962242]
[1762106648893,0.55585604,110340.0,110330.0,0.25962242]
[1762106649118,0.55585604,110340.0,110330.0,0.23696242]
[1762106649532,0.59203832,110340.0,110330.0,0.23696242]
[1762106649959,0.59203832,110340.0,110330.0,0.05568807]
[1762106650377,0.59203832,110340.0,110330.0,0.23696242]
[1762106650589,0.59203832,110340.0,110330.0,0.05568807]
[1762106650787,0.22144021,110340.0,110330.0,0.05568807]
[1762106651726,0.22144021,110340.0,110330.0,0.02845]
[1762106655919,0.21745663,110330.0,110320.0,0.22012933]
[1762106656137,0.21745663,110330.0,110320.0,0.05504854]
[1762106656576,0.21745663,110330.0,110320.0,0.02781]
[1762106657645,0.21945663,110330.0,110320.0,0.02781]
[1762106657801,0.59005474,110330.0,110320.0,0.02781]
[1762106658027,0.21945663,110330.0,110320.0,0.02781]
[1762106658226,0.21745663,110330.0,110320.0,0.02781]
[1762106658769,0.22245663,110330.0,110320.0,0.02781]
[1762106659000,0.22445663,110330.0,110320.0,0.02781]
[1762106660812,0.04318228,110330.0,110320.0,0.23184079]
[1762106661031,0.22445663,110330.0,110320.0,0.23184079]
[1762106661678,0.04318228,110330.0,110320.0,0.23184079]
[1762106663169,0.22445663,110330.0,110320.0,0.23184079]
[1762106666281,0.22445663,110330.0,110320.0,0.02781]
[1762106669054,0.22445663,110330.0,110320.0,0.20910079]
[1762106669259,0.22445663,110330.0,110320.0,0.02781]
[1762106670980,0.22445663,110330.0,110320.0,0.20910079]
[1762106671665,0.22445663,110330.0,110320.0,0.23290079]
[1762106672743,0.04318228,110330.0,110320.0,0.23290079]
[1762106673190,0.22445663,110330.0,110320.0,0.23290079]
[1762106673658,0.04318228,110330.0,110320.0,0.23290079]
[1762106673869,0.22445663,110330.0,110320.0,0.23290079]
[1762106674298,0.04318228,110330.0,110320.0,0.23290079]
[1762106676405,0.04318228,110330.0,110320.0,0.6841432]
[1762106676406,0.007,110330.0,110320.0,0.6841432]
[1762106677531,0.002,110330.0,110320.0,0.6841432]
[1762106677741,0.67739191,110350.0,110340.0,0.18125793]
[1762106678391,0.67739191,110350.0,110340.0,0.19626793]
[1762106679467,0.68239191,110350.0,110340.0,0.20873793]
[1762106679687,0.67332388,110350.0,110340.0,0.23253793]
[1762106680157,0.67532388,110350.0,110340.0,0.23253793]
[1762106683760,0.49408238,110350.0,110340.0,0.23253793]
[1762106683999,0.67532388,110350.0,110340.0,0.23253793]
[1762106684600,0.49408238,110350.0,110340.0,0.23253793]
[1762106686331,0.67532388,110350.0,110340.0,0.23253793]
[1762106687390,0.49408238,110350.0,110340.0,0.23253793]
[1762106692607,0.40336709,110350.0,110340.0,0.27193681]
[1762106694431,0.38380261,110350.0,110340.0,0.27193681]
[1762106696707,0.38380261,110350.0,110340.0,0.23253793]
[1762106702910,0.00762033,110350.0,110340.0,0.60322572]
[1762106703367,0.00762033,110350.0,110340.0,0.63045669]
[1762106703594,0.00762033,110350.0,110340.0,1.00114448]
[1762106704032,0.00262033,110350.0,110340.0,1.00114448]
[1762106704250,0.00462033,110350.0,110340.0,1.09096349]
[1762106704706,0.00062033,110350.0,110340.0,1.09096349]
[1762106704955,0.00062033,110350.0,110340.0,0.7202757]
[1762106705159,0.00062033,110350.0,110340.0,0.35158791]
[1762106705378,0.00062033,110350.0,110340.0,0.7222757]
[1762106705595,0.00062033,110350.0,110340.0,0.35258791]
[1762106705806,0.00062033,110350.0,110340.0,0.35158791]
[1762106706234,0.00062033,110350.0,110340.0,0.34958791]
[1762106706671,0.00262033,110350.0,110340.0,0.34958791]
[1762106708415,0.00262033,110350.0,110340.0,0.32235694]
[1762106709087,0.18386183,110350.0,110340.0,0.32235694]
[1762106710879,0.00262033,110350.0,110340.0,0.32235694]
[1762106711369,0.18386183,110350.0,110340.0,0.32235694]
[1762106713172,0.00262033,110350.0,110340.0,0.32235694]
[1762106720389,0.00262033,110350.0,110340.0,0.69282223]
[1762106722135,0.00262033,110350.0,110340.0,0.32235694]
[1762106723969,0.00262033,110350.0,110340.0,0.69282223]
[1762106733921,0.00262033,110350.0,110340.0,1.06328752]
[1762106734142,0.00262033,110350.0,110340.0,1.09052067]
[1762106735006,0.00062033,110350.0,110340.0,1.09052067]
[1762106735435,0.00062033,110350.0,110340.0,1.09552067]
[1762106737216,0.00062033,110350.0,110340.0,1.09852067]
[1762106744114,0.00062033,110350.0,110340.0,1.46898596]
[1762106744724,0.00062033,110350.0,110340.0,1.09852067]
[1762106747707,0.00062033,110350.0,110340.0,1.46898596]
[1762106747925,0.00062033,110350.0,110340.0,1.09852067]
[1762106748266,0.00062033,110350.0,110340.0,1.46898596]
[1762106748689,0.00062033,110350.0,110340.0,1.09852067]
[1762106749676,0.00062033,110350.0,110340.0,1.46898596]
[1762106750075,0.00062033,110350.0,110340.0,1.09852067]
[1762106767149,0.00062033,110350.0,110340.0,1.46898596]
[1762106767745,0.00062033,110350.0,110340.0,1.09852067]
[1762106768241,0.00062033,110350.0,110340.0,1.46898596]
[1762106771579,0.00062033,110350.0,110340.0,1.44175281]
[1762106773606,0.00062033,110350.0,110340.0,1.07128752]
[1762106780423,0.00062033,110350.0,110340.0,1.07103912]
[1762106783208,0.00062033,110350.0,110340.0,0.33035694]
[1762106783418,0.00062033,110350.0,110340.0,0.61087902]
[1762106783570,0.00062033,110350.0,110340.0,0.24053793]
[1762106783775,0.00062033,110350.0,110340.0,0.61087902]
[1762106818006,0.00062033,110350.0,110340.0,0.98122011]
[1762106831919,0.00062033,110350.0,110340.0,0.9848504]
[1762106832201,0.00062033,110350.0,110340.0,1.07466941]
[1762106840585,0.0004,110360.0,110350.0,0.1812415]
[1762106840838,0.0004,110360.0,110350.0,0.96252674]
[1762106841038,0.0004,110360.0,110350.0,0.94440259]
[1762106841213,0.0004,110360.0,110350.0,0.9480326]
[1762106841425,0.0004,110360.0,110350.0,0.97816709]
[1762106841657,0.0004,110360.0,110350.0,0.96575709]
[1762106842010,0.0004,110360.0,110350.0,0.96675709]
[1762106842353,0.0004,110360.0,110350.0,1.3358362]
[1762106843269,0.0014,110360.0,110350.0,1.3358362]
[1762106843672,0.0004,110360.0,110350.0,1.34983619]
[1762106843963,0.0004,110360.0,110350.0,4.34983619]
[1762106844186,0.0004,110360.0,110350.0,4.35483619]
[1762106846330,0.00062027,110360.0,110350.0,4.35483619]
[1762106847185,0.00062027,110360.0,110350.0,4.42134575]
[1762106857384,0.00062027,110360.0,110350.0,4.56934575]
[1762106859240,1e-08,110360.0,110350.0,4.56934575]
[1762106867592,1e-08,110360.0,110350.0,4.56434575]
[1762106870758,1e-08,110360.0,110350.0,4.55934575]
[1762106882375,1e-08,110370.0,110360.0,0.20879508]
[1762106882611,0.00013164,110370.0,110360.0,4.87292967]
[1762106882837,0.00013164,110370.0,110360.0,4.50271957]
[1762106883070,0.00013164,110370.0,110360.0,4.50634893]
[1762106883310,1e-08,110380.0,110370.0,3.53120865]
[1762106883549,0.0002,110400.0,110390.0,0.18117583]
[1762106883775,0.0002,110400.0,110390.0,0.2569979]
[1762106884012,0.0002,110400.0,110390.0,0.64090434]
[1762106885164,0.0002,110400.0,110390.0,0.64390434]
[1762106887573,0.0002,110400.0,110390.0,0.27369424]
[1762106887805,0.3704101,110400.0,110390.0,0.25072424]
[1762106888030,0.7406202,110400.0,110390.0,0.18417583]
[1762106888261,0.3704101,110400.0,110390.0,0.18417583]
[1762106888502,0.3704101,110400.0,110390.0,0.19944583]
[1762106888749,0.37129087,110400.0,110390.0,0.19944583]
[1762106888967,0.55245029,110400.0,110390.0,0.19844583]
[1762106889159,0.55645029,110400.0,110390.0,0.19844583]
[1762106889406,0.37529087,110400.0,110390.0,0.21074583]
[1762106889641,0.37529087,110400.0,110390.0,0.20874583]
[1762106889912,0.38229087,110400.0,110390.0,0.20874583]
[1762106890114,0.56345029,110400.0,110390.0,0.19347583]
[1762106890554,0.56345029,110400.0,110390.0,0.18117583]
[1762106891435,0.93366039,110400.0,110390.0,0.18117583]
[1762106894017,0.93366039,110400.0,110380.0,0.19349224]
[1762106894241,0.3702101,110390.0,110380.0,0.25066537]
[1762106894668,0.55138593,110390.0,110370.0,0.22553909]
[1762106894956,0.55140234,110380.0,110370.0,0.21879909]
[1762106895181,0.3702101,110380.0,110370.0,0.19026909]
[1762106895414,0.3702101,110380.0,110370.0,0.20649909]
[1762106895643,0.55140234,110380.0,110370.0,0.21836909]
[1762106896084,0.55140234,110380.0,110370.0,0.26286363]
[1762106897017,0.3762101,110380.0,110370.0,0.26286363]
[1762106897243,0.3762101,110380.0,110370.0,0.19026909]
[1762106897507,0.3812101,110380.0,110370.0,0.20649909]
[1762106897744,0.3812101,110380.0,110370.0,0.21836909]
[1762106897963,0.011,110380.0,110370.0,0.24235909]
[1762106898660,0.3812101,110380.0,110370.0,0.24235909]
[1762106899101,0.3752101,110380.0,110370.0,0.24235909]
[1762106899326,0.3702101,110380.0,110370.0,0.24235909]
[1762106900205,0.37065056,110380.0,110370.0,0.24235909]
[1762106900668,0.00244046,110380.0,110370.0,0.24235909]
[1762106902016,0.00244046,110380.0,110370.0,0.28685363]
[1762106902887,0.00244046,110380.0,110370.0,0.21836909]
[1762106903080,0.37265056,110380.0,110370.0,0.21836909]
[1762106903546,0.37265056,110380.0,110370.0,0.20213909]
[1762106904428,0.00244046,110380.0,110370.0,0.20213909]
[1762106905049,0.1836327,110380.0,110370.0,0.19026909]
[1762106905530,0.55394829,110380.0,110370.0,0.19026909]
[1762106905766,0.55394829,110380.0,110370.0,0.18120866]
[1762106905981,0.55394829,110380.0,110360.0,0.19028633]
[1762106906194,0.21041951,110380.0,110370.0,0.18120866]
[1762106906427,0.21041951,110380.0,110360.0,0.22976132]
[1762106906428,0.00022025,110370.0,110360.0,0.22976132]
[1762106907553,0.00022025,110370.0,110360.0,0.19028633]
[1762106907764,0.37053584,110370.0,110360.0,0.19028633]
[1762106908823,0.37253584,110370.0,110360.0,0.19028633]
[1762106909032,0.37553584,110370.0,110360.0,0.19028633]
[1762106909676,0.00522025,110370.0,110360.0,0.20603633]
[1762106909882,0.00522025,110370.0,110360.0,0.24708632]
[1762106910092,0.00522025,110370.0,110360.0,0.28263632]
[1762106910331,0.00522025,110370.0,110360.0,0.25836632]
[1762106913789,0.00522025,110370.0,110360.0,0.28263632]
[1762106916934,0.00522025,110370.0,110360.0,0.24158633]
[1762106920807,0.00522025,110370.0,110360.0,0.21731633]
[1762106922957,0.00522025,110370.0,110360.0,0.20156633]
[1762106923594,0.00522025,110370.0,110360.0,0.21731633]
[1762106926381,0.00522025,110370.0,110360.0,0.19028633]
[1762106926382,0.37553584,110370.0,110360.0,0.19028633]
[1762106927403,0.5567445,110370.0,110350.0,0.18019357]
[1762106927614,0.5567445,110370.0,110350.0,0.1803252]
[1762106927874,0.37031559,110360.0,110350.0,0.1680252]
[1762106929711,0.59092678,110370.0,110360.0,0.18122508]
[1762106930392,0.59092678,110370.0,110350.0,0.1680252]
[1762106930606,0.58792678,110370.0,110360.0,0.18122508]
[1762106931061,0.58792678,110370.0,110350.0,0.1680252]
[1762106931273,0.58792678,110370.0,110360.0,0.18122508]
[1762106931722,0.59092678,110370.0,110360.0,0.18122508]
[1762106931945,0.5547445,110370.0,110360.0,0.18122508]
[1762106932087,0.5537445,110370.0,110350.0,0.1680252]
[1762106932510,0.41171812,110370.0,110360.0,0.18122508]
[1762106933679,0.40871812,110370.0,110360.0,0.18122508]
[1762106933888,0.58992678,110370.0,110360.0,0.18122508]
[1762106934192,0.59292678,110370.0,110360.0,0.18122508]
[1762106934384,0.41171812,110370.0,110360.0,0.18122508]
[1762106934601,0.40871812,110370.0,110360.0,0.18122508]
[1762106934837,0.41171812,110370.0,110360.0,0.18122508]
[1762106936000,0.59292678,110370.0,110360.0,0.18122508]
[1762106937549,0.41171812,110370.0,110360.0,0.18122508]
[1762106937767,0.59292678,110370.0,110360.0,0.18122508]
[1762106938777,0.41171812,110370.0,110360.0,0.18122508]
[1762106948488,0.59292678,110370.0,110360.0,0.18122508]
[1762106949098,0.41171812,110370.0,110360.0,0.18122508]
[1762106952093,0.04140253,110370.0,110360.0,0.18122508]
[1762106952304,0.41171812,110370.0,110360.0,0.18122508]
[1762106954283,0.00522025,110370.0,110360.0,0.28670061]
[1762106954504,0.00522025,110370.0,110360.0,0.26857811]
[1762106955400,0.00522025,110370.0,110360.0,0.23244508]
[1762106955877,0.00522025,110370.0,110360.0,0.60276067]
[1762106956744,0.00522025,110370.0,110360.0,0.23244508]
[1762106956965,0.00322025,110370.0,110360.0,0.23244508]
[1762106958285,0.00022025,110370.0,110360.0,0.23244508]
[1762106958991,0.00022025,110370.0,110360.0,0.31073167]
[1762106959681,0.00022025,110370.0,110360.0,0.31152167]
[1762106964436,0.00022025,110370.0,110360.0,0.68183621]
[1762106965845,0.00022025,110370.0,110360.0,0.31152167]
[1762106966952,0.00022025,110370.0,110360.0,1.05215075]
[1762106971062,0.00022025,110370.0,110360.0,1.05515075]
[1762106971306,0.00022025,110370.0,110360.0,1.05615075]
[1762106973688,0.00022025,110370.0,110360.0,0.68583621]
[1762106973924,0.00022025,110370.0,110360.0,0.31552167]
[1762106974365,0.00022025,110370.0,110360.0,0.68583621]
[1762106974827,0.00022025,110370.0,110360.0,0.31252167]
[1762106975063,0.00022025,110370.0,110360.0,0.68183621]
[1762106976568,0.00022025,110370.0,110360.0,0.28822167]
[1762106976787,0.00022025,110370.0,110360.0,0.31173167]
[1762106978166,0.00022025,110370.0,110360.0,0.28822167]
[1762106978390,0.37053479,110370.0,110360.0,0.28822167]
[1762106979059,0.00022025,110370.0,110360.0,0.28822167]
[1762106980334,0.00322025,110370.0,110360.0,0.28822167]
[1762106980542,0.00522025,110370.0,110360.0,0.28822167]
[1762106980770,0.00222025,110370.0,110360.0,0.28822167]
[1762106981188,0.00522025,110370.0,110360.0,0.28822167]
[1762106983625,0.00522025,110370.0,110360.0,0.31173167]
[1762106989424,0.00522025,110370.0,110360.0,0.68204621]
[1762106990389,0.00022025,110370.0,110360.0,0.68204621]
[1762106997188,0.00022025,110370.0,110360.0,1.05236075]
[1762106997404,0.00022025,110370.0,110360.0,0.70926994]
[1762106998389,0.00022025,110370.0,110360.0,1.07958448]
[1762106999805,0.00022025,110370.0,110360.0,0.70926994]
[1762107002445,0.00022025,110370.0,110360.0,1.07958448]
[1762107003455,0.00022025,110370.0,110360.0,1.41958448]
[1762107003926,1e-08,110370.0,110360.0,1.41958448]
[1762107004141,1e-08,110370.0,110360.0,4.41958448]
[1762107005488,1e-08,110370.0,110360.0,3.6789554]
[1762107005711,1e-08,110370.0,110360.0,4.41958448]
[1762107005920,1e-08,110370.0,110360.0,4.42358448]
[1762107006131,1e-08,110370.0,110360.0,4.42258448]
[1762107006358,1e-08,110370.0,110360.0,4.41958448]
[1762107006566,1e-08,110370.0,110360.0,4.42258448]
[1762107006775,1e-08,110370.0,110360.0,4.42858448]
[1762107007001,1e-08,110370.0,110360.0,4.57658448]
[1762107024454,1e-08,110370.0,110360.0,4.42858448]
[1762107026399,1e-08,110370.0,110360.0,4.05810369]
[1762107030453,1e-08,110370.0,110360.0,4.20610369]
[1762107031147,1e-08,110370.0,110360.0,4.21610368]
[1762107031378,1e-08,110370.0,110360.0,4.58625197]
[1762107031826,1e-08,110370.0,110360.0,4.59625196]
[1762107052398,1e-08,110370.0,110360.0,4.58625197]
[1762107052673,1e-08,110370.0,110360.0,4.59625196]
[1762107055318,1e-08,110370.0,110360.0,4.58625197]
[1762107055659,1e-08,110370.0,110360.0,4.59625196]
[1762107056489,1e-08,110370.0,110360.0,4.58625197]
[1762107056719,1e-08,110370.0,110360.0,4.59625196]
[1762107057573,1e-08,110370.0,110360.0,4.58625197]
[1762107057777,1e-08,110370.0,110360.0,4.59625196]
[1762107059364,1e-08,110370.0,110360.0,4.58625197]
[1762107059577,1e-08,110370.0,110360.0,4.59625196]
[1762107062385,1e-08,110370.0,110360.0,4.58625197]
[1762107062618,1e-08,110370.0,110360.0,4.59625196]
[1762107064112,1e-08,110370.0,110360.0,4.58625197]
[1762107064561,1e-08,110370.0,110360.0,4.59625196]
[1762107066933,1e-08,110370.0,110360.0,4.58625197]
[1762107067139,1e-08,110370.0,110360.0,4.59625196]
[1762107067774,1e-08,110370.0,110360.0,4.22610367]
[1762107067988,1e-08,110370.0,110360.0,4.20610369]
[1762107068216,1e-08,110370.0,110360.0,3.86610369]
[1762107068657,1e-08,110370.0,110360.0,4.20610369]
[1762107069077,1e-08,110370.0,110360.0,3.8359554]
[1762107069289,1e-08,110370.0,110360.0,4.20610369]
[1762107077371,1e-08,110370.0,110360.0,4.20566702]
[1762107080035,1e-08,110370.0,110360.0,4.05766702]
[1762107080260,1e-08,110370.0,110360.0,3.71766702]
[1762107080926,1e-08,110370.0,110360.0,3.34751873]
[1762107081137,1e-08,110370.0,110360.0,3.71766702]
[1762107081359,1e-08,110370.0,110360.0,3.71466702]
[1762107081589,1e-08,110370.0,110360.0,3.33851873]
[1762107082014,1e-08,110370.0,110360.0,3.34151873]
[1762107084920,1e-08,110370.0,110360.0,3.71166702]
[1762107087609,1e-08,110370.0,110360.0,3.31800873]
[1762107087823,1e-08,110370.0,110360.0,3.68815702]
[1762107088035,1e-08,110370.0,110360.0,3.71170702]
[1762107088464,1e-08,110370.0,110360.0,3.71182039]
[1762107097120,1e-08,110370.0,110360.0,3.70882039]
[1762107097836,0.00100001,110370.0,110360.0,3.70882039]
[1762107099994,0.00100001,110370.0,110360.0,0.70882039]
[1762107100224,0.00100001,110370.0,110360.0,0.60331007]
[1762107102001,0.00100001,110370.0,110360.0,0.57976007]
[1762107102233,0.00100001,110370.0,110360.0,0.20949841]
[1762107102450,0.00100001,110370.0,110360.0,0.57976007]
[1762107103108,0.00100001,110370.0,110360.0,0.20949841]
[1762107103324,0.00100001,110370.0,110360.0,0.57976007]
[1762107104475,0.00100001,110370.0,110360.0,0.66082408]
[1762107105145,0.00100001,110370.0,110360.0,0.68409408]
[1762107115282,0.00100001,110370.0,110360.0,1.05435574]
[1762107116186,0.00100001,110370.0,110360.0,0.68409408]
[1762107117306,0.00100001,110370.0,110360.0,1.05435574]
[1762107127377,0.00100001,110370.0,110360.0,0.68409408]
[1762107131826,0.00100001,110370.0,110360.0,1.08158053]
[1762107138503,0.00100001,110370.0,110360.0,0.71131887]
[1762107139129,0.00100001,110370.0,110360.0,1.08158053]
[1762107140818,0.00100001,110370.0,110360.0,0.34105721]
[1762107141027,0.00100001,110370.0,110360.0,1.08158053]
[1762107144332,0.00100001,110370.0,110360.0,0.71131887]
[1762107144763,0.00100001,110370.0,110360.0,1.08158053]
[1762107146629,0.00100001,110370.0,110360.0,0.34105721]
[1762107146663,0.00100001,110370.0,110360.0,1.08158053]
[1762107148530,0.00100001,110370.0,110360.0,0.71128113]
[1762107162632,1e-08,110370.0,110360.0,4.08150505]
[1762107162857,1e-08,110370.0,110360.0,4.42150505]
[1762107163763,0.0002,110400.0,110390.0,0.18117583]
[1762107163983,0.0002,110400.0,110390.0,0.20843583]
[1762107164199,0.0002,110400.0,110390.0,0.23292583]
[1762107164429,0.0002,110400.0,110390.0,0.27181532]
[1762107164670,0.00086055,110400.0,110390.0,0.29903688]
[1762107165096,0.00134449,110400.0,110390.0,0.29903688]
[1762107166228,0.00334449,110400.0,110390.0,0.29903688]
[1762107166438,0.00634449,110400.0,110390.0,0.29903688]
[1762107169161,0.00634449,110400.0,110390.0,0.63037131]
[1762107171948,0.00434449,110400.0,110390.0,0.63037131]
[1762107172159,0.00534449,110400.0,110390.0,0.63037131]
[1762107172586,0.00234449,110400.0,110390.0,0.63037131]
[1762107181950,0.00234449,110400.0,110390.0,0.23565739]
[1762107182157,0.00234449,110400.0,110390.0,0.20839739]
[1762107182158,0.48592862,110400.0,110390.0,0.20839739]
[1762107182376,0.64444312,110400.0,110390.0,0.18117583]
[1762107182595,0.76320402,110400.0,110380.0,0.20840007]
[1762107182827,0.76254347,110400.0,110390.0,0.18117583]
[1762107183057,0.67996485,110400.0,110390.0,0.18117583]
[1762107183503,0.49880543,110400.0,110390.0,0.18117583]
[1762107183954,0.50480543,110400.0,110390.0,0.18117583]
[1762107184174,0.13358151,110400.0,110390.0,0.19772583]
[1762107184391,0.31874093,110400.0,110390.0,0.18117583]
[1762107184820,0.31474093,110400.0,110390.0,0.18117583]
[1762107185024,0.68896485,110400.0,110390.0,0.18117583]
[1762107185837,0.50780543,110400.0,110390.0,0.18117583]
[1762107186049,0.68896485,110400.0,110390.0,0.18117583]
[1762107186919,0.50780543,110400.0,110390.0,0.18117583]
[1762107187331,0.68896485,110400.0,110390.0,0.18117583]
[1762107188240,0.0004404,110390.0,110380.0,0.21993007]
[1762107189585,0.0034404,110390.0,110380.0,0.21993007]
[1762107189793,0.57748712,110390.0,110380.0,0.20840007]
[1762107189998,0.57748712,110390.0,110380.0,0.1811773]
[1762107189999,0.55484015,110390.0,110380.0,0.1811773]
[1762107190206,0.55484015,110390.0,110370.0,0.21747749]
[1762107190419,0.39287295,110380.0,110370.0,0.21747749]
[1762107190631,0.64213145,110380.0,110370.0,0.18120866]
[1762107193022,0.64213145,110380.0,110360.0,0.18078841]
[1762107193023,0.67831373,110380.0,110360.0,0.18078841]
[1762107193461,0.68131373,110380.0,110360.0,0.18078841]
[1762107194372,0.67831373,110380.0,110360.0,0.18078841]
[1762107194582,0.68131373,110380.0,110360.0,0.18078841]
[1762107194801,0.68731373,110380.0,110360.0,0.18078841]
[1762107195265,0.55143258,110370.0,110360.0,0.18078841]
[1762107195486,0.18120866,110370.0,110360.0,0.18078841]
[1762107196580,0.18420866,110370.0,110360.0,0.18078841]
[1762107197006,0.18620866,110370.0,110360.0,0.18078841]
[1762107198812,0.18620866,110370.0,110350.0,0.17957357]
[1762107199065,0.18620866,110370.0,110360.0,0.18122508]
[1762107199753,0.55143258,110370.0,110350.0,0.17957357]
[1762107200009,0.55143258,110370.0,110350.0,0.16789357]
[1762107200264,0.55343258,110370.0,110350.0,0.16789357]
[1762107200515,0.18122508,110360.0,110350.0,0.16789357]
[1762107200786,0.02265313,110360.0,110350.0,0.16789357]
[1762107201032,0.18122508,110360.0,110350.0,0.16789357]
[1762107201731,0.18127344,110360.0,110350.0,0.16789357]
[1762107203607,4.836e-05,110360.0,110350.0,0.16789357]
[1762107204074,0.18127344,110360.0,110350.0,0.16789357]
[1762107204308,4.836e-05,110360.0,110350.0,0.16789357]
[1762107205012,0.18127344,110360.0,110350.0,0.16789357]
[1762107205720,0.57415049,110360.0,110350.0,0.16789357]
[1762107205958,0.55149736,110360.0,110350.0,0.16789357]
[1762107206485,0.37027228,110360.0,110350.0,0.16789357]
[1762107206738,0.55149736,110360.0,110350.0,0.16789357]
[1762107206987,0.37027228,110360.0,110350.0,0.16789357]
[1762107207221,0.55149736,110360.0,110350.0,0.16789357]
[1762107207911,4.836e-05,110360.0,110350.0,0.16789357]
[1762107208152,0.09076365,110360.0,110350.0,0.16789357]
[1762107210642,0.46121596,110360.0,110350.0,0.16789357]
[1762107212929,0.64244104,110360.0,110350.0,0.16789357]
[1762107213602,0.64244104,110360.0,110340.0,0.01153]
[1762107213818,0.39310749,110350.0,110340.0,0.18125793]
[1762107214084,0.55169381,110350.0,110340.0,0.18125793]
[1762107214514,0.37045231,110350.0,110340.0,0.18125793]
[1762107215608,0.37045231,110350.0,110340.0,0.18225793]
[1762107215825,0.37045231,110350.0,110340.0,0.18125793]
[1762107216046,0.37245231,110350.0,110340.0,0.18125793]
[1762107216276,0.002,110350.0,110340.0,0.18125793]
[1762107216482,0.01084814,110350.0,110340.0,0.18125793]
[1762107216895,0.01384814,110350.0,110340.0,0.18125793]
[1762107233370,0.01384814,110350.0,110340.0,0.19689793]
[1762107237477,0.38430045,110350.0,110340.0,0.18125793]
[1762107240624,0.01384814,110350.0,110340.0,0.18125793]
[1762107241050,0.01384814,110350.0,110340.0,0.25911326]
[1762107242319,0.01384814,110350.0,110340.0,0.18125793]
[1762107249226,0.38430045,110350.0,110340.0,0.18125793]
[1762107253113,0.01384814,110350.0,110340.0,0.18125793]
[1762107259853,0.56554195,110350.0,110340.0,0.18125793]
[1762107262454,0.38430045,110350.0,110340.0,0.18125793]
[1762107263567,0.56554195,110350.0,110340.0,0.18125793]
[1762107263747,0.56554195,110350.0,110330.0,0.19032305]
[1762107263748,0.60172423,110350.0,110330.0,0.19032305]
[1762107263970,0.60172423,110350.0,110340.0,0.18125793]
[1762107264649,0.59872423,110350.0,110340.0,0.18125793]
[1762107265128,0.60172423,110350.0,110340.0,0.18125793]
[1762107265824,0.59872423,110350.0,110340.0,0.18125793]
[1762107266036,0.60172423,110350.0,110340.0,0.18125793]
[1762107270445,0.23127192,110350.0,110340.0,0.18125793]
[1762107272118,0.05003042,110350.0,110340.0,0.18125793]
[1762107272352,0.23127192,110350.0,110340.0,0.18125793]